Workbook

Sheet ＴＯＰ
B4: 入力・移動 各シートの | E4: に必要事項を入力します。
B5: 印刷 各シートはＡ４サイズの用紙に出力されます。
B7: 入力・移動 | D7: 印刷 | F7: 説明
F9: 会社名と前事業年度終了日を入力してください
F11: 対策前の損益計算書の数字と、決算対策の数字、決算対策の内容を入力します。
F13: 決算対策前の法人税などの納税見込額を計算します。税率・均等割額はこちらで入力します
F15: 決算対策後の数字をもとに、法人税などの納税見込額を計算します
F17: 決算対策前と決算対策後の損益計算書と法人税などの見込額を一枚のシートで対比します。
F19: 提供：小林敬幸税理士事務所
F20: Ver. 1.0
D23: 保護パスワードは、左の本の背面の
D24: ２つめのバーコードの数字
D25: （1920で始まる１３ケタの数字（半角））
D26: になっています。
D27: ご活用いただけるようでしたら
D28: ぜひ本書もお求めください。

Sheet 基本情報
B8: 会社名を入力 | C8: 株式会社今野デザイン
B10: 事業年度終了日を入力 | C10: 2013-09-30

Sheet 対策後の決算書
A1: 損益計算書の決算予測と決算対策の入力
A4: 勘 定 科 目 | F4: 決算額 | G4: 決算対策額 | H4: 調整後の金額 | I4: 決算対策の内容
A6: 経常損益 | B6: 営業損益 | C6: 売上高 | D6: 売上高 | F6: 29235176 | H6: =SUM(F6:G6) -> 29235176
H7: =SUM(F7:G7) -> 0
H8: =SUM(F8:G8) -> 0
H9: =SUM(F9:G9) -> 0
H10: =SUM(F10:G10) -> 0
D11: 売上高合計 | F11: =SUM(F6:F10) -> 29235176 | H11: =SUM(H6:H10) -> 29235176
C12: 売上原価 | D12: 期首棚卸高 | H12: =SUM(F12:G12) -> 0
D13: 仕入高 | H13: 0
H14: 0
H15: 0
H16: 0
H17: 0
H18: 0
D19: 期末棚卸高 | H19: 0
D20: 売上原価 | F20: =SUM(F12:F19) -> 0 | H20: =SUM(H12:H19) -> 0
C21: 売上総損益金額 | F21: =F11-F20 -> 29235176 | H21: =H11-H20 -> 29235176
C22: (売上総利益率） | F22: =IF(F11<=0,0,F21/F11) -> 1 | H22: =IF(H11<=0,0,H21/H11) -> 1
C23: 販売費及び一般管理費 | D23: 人件費 | E23: 役員報酬 | F23: 13200000 | H23: =SUM(F23:G23) -> 13200000
E24: 給料手当 | F24: 0 | H24: 0
E25: 賞与 | F25: 0 | H25: 0
E26: 退職金 | F26: 0 | H26: 0
E27: 法定福利費 | F27: 1802067 | H27: 1802067
F28: 0 | H28: 0
F29: 0 | H29: 0
F30: 0 | H30: 0
E31: 人件費小計 | F31: =SUM(F23:F30) -> 15002067 | H31: =SUM(H23:H30) -> 15002067
D32: その他の経費 | E32: 外注費 | F32: 2873224 | H32: =SUM(F32:G32) -> 2873224
E33: 広告宣伝費 | F33: 600000 | H33: 600000
E34: 交際費 | F34: 397840 | H34: 397840
E35: 会議費 | F35: 56948 | H35: 56948
E36: 旅費交通費 | F36: 755580 | H36: 755580
E37: 通信費 | F37: 467878 | H37: 467878
E38: 消耗品費 | F38: 553031 | G38: 220000 | H38: 773031 | I38: パソコン１台購入
E39: 事務用品費 | F39: 0 | H39: 0
E40: 水道光熱費 | F40: 195811 | H40: 195811
E41: 新聞図書費 | F41: 230199 | H41: 230199
E42: 諸会費 | F42: 30000 | H42: 30000
E43: 支払手数料 | F43: 106900 | H43: 106900
E44: 車両費 | F44: 291432 | H44: 291432
E45: 地代家賃 | F45: 1440000 | G45: 1440000 | H45: 2880000 | I45: 事務所家賃１年分前払い
E46: 賃借料 | F46: 240000 | H46: 240000
E47: リース料 | F47: 0 | H47: 0
E48: 保険料 | F48: 45000 | G48: 960000 | H48: 1005000 | I48: 倒産防止共済加入
E49: 租税公課 | F49: 700000 | H49: 700000
E50: 研究開発費 | F50: 0 | H50: 0
E51: 減価償却費 | F51: 399996 | H51: 399996
E52: 長期前払費用償却 | F52: 0 | H52: 0
E53: 雑費 | F53: 191181 | H53: 191181
E54: 顧問料 | F54: 420000 | H54: 420000
F55: 0 | H55: 0
F56: 0 | H56: 0
F57: 0 | H57: 0
F58: 0 | H58: 0
F59: 0 | H59: 0
F60: 0 | H60: 0
D61: 販売管理費計 | F61: =SUM(F31:F60) -> 24997087 | H61: =SUM(H31:H60) -> 27617087
C62: 営業損益金額 | F62: =F21-F61 -> 4238089 | H62: =H21-H61 -> 1618089
B63: 営業外損益 | C63: 営業外収益 | D63: 受取利息 | F63: 3240 | H63: =SUM(F63:G63) -> 3240
D64: 受取配当金 | H64: =SUM(F64:G64) -> 0
H65: =SUM(F65:G65) -> 0
H66: =SUM(F66:G66) -> 0
D67: 雑収入 | H67: =SUM(F67:G67) -> 0
D68: 営業外収益合計 | F68: =SUM(F63:F67) -> 3240 | H68: =SUM(H63:H67) -> 3240
C69: 営業外費用 | D69: 支払利息 | H69: =SUM(F69:G69) -> 0
D70: 貸倒損失 | H70: =SUM(F70:G70) -> 0
H71: =SUM(F71:G71) -> 0
H72: =SUM(F72:G72) -> 0
D73: 雑損失 | H73: =SUM(F73:G73) -> 0
D74: 営業外費用合計 | F74: =SUM(F69:F73) -> 0 | H74: =SUM(H69:H73) -> 0
C75: 経常損益金額 | F75: =F62+F68-F74 -> 4241329 | H75: =H62+H68-H74 -> 1621329
A76: 特別損益 | C76: 特別利益 | H76: =SUM(F76:G76) -> 0
H77: =SUM(F77:G77) -> 0
H78: =SUM(F78:G78) -> 0
H79: =SUM(F79:G79) -> 0
H80: =SUM(F80:G80) -> 0
D81: 特別利益合計 | F81: =SUM(F76:F80) -> 0 | H81: =SUM(H76:H80) -> 0
C82: 特別損失 | H82: =SUM(F82:G82) -> 0
H83: =SUM(F83:G83) -> 0
H84: =SUM(F84:G84) -> 0
H85: =SUM(F85:G85) -> 0
H86: =SUM(F86:G86) -> 0
D87: 特別損失合計 | F87: =SUM(F82:F86) -> 0 | H87: =SUM(H82:H86) -> 0
C88: 税引前当期利益金額 | F88: =F75+F81-F87 -> 4241329 | H88: =H75+H81-H87 -> 1621329
E90: =SUMIF(E6:S87,"交際費",H6:H87) -> 397840
E91: =SUMIF(E6:S87,"接待費",H6:H87) -> 0
E92: =SUMIF(E6:S87,"接待交際費",H6:H87) -> 0
E93: =SUMIF(E6:S87,"交際接待費",H6:H87) -> 0
E94: =SUM(E90:E92) -> 397840

Sheet 対策前の法人税等
A1: 対策前の法人税等の計算
A3: １、所得の計算（別表４） | E3: ２、 法人税の計算 | H3: ５、県民税の計算 | K3: ６、今期納税見込額
A4: ="税引前当期利益" -> 税引前当期利益 | C4: =対策後の決算書!F88 -> 4241329 | E4: 所得金額 | F4: =C33 -> 4281113 | H4: 法人事業税 | K4: =E11 -> 法人税額 | L4: =F13 -> 642100
A5: 加 算 | B5: 交際費損金不算入額 | C5: 39784 | E5: 800万以下の金額 | F5: =IF(F4<=0,0,IF($F$4<=8000000,ROUNDDOWN($F$4/1000,0)*1000,8000000)) -> 4281000 | H5: 400万以下の金額 | I5: =IF(F4<=0,0,IF($F$4<=4000000,ROUNDDOWN($F$4/1000,0)*1000,4000000)) -> 4000000 | K5: =E18 -> 復興特別法人税 | L5: =F18 -> 64200
E6: 800万超の金額 | F6: =IF($F$4>8000000,ROUNDDOWN(($F$4-8000000)/1000,0)*1000,0) -> 0 | H6: 800万以下の金額 | I6: =IF($F$4<=4000000,0,IF($F$4<=8000000,ROUNDDOWN(($F$4-4000000)/1000,0)*1000,4000000)) -> 281000 | K6: =H14 -> 法人事業税 | L6: =I14 -> 119200
E7: 800万までの税率 | F7: 0.15 | H7: 800万超の金額 | I7: =IF(F4<=8000000,0,ROUNDDOWN((F4-8000000)/1000,0)*1000) -> 0 | K7: =H21 -> 法人県民税 | L7: =I21 -> 52100
E8: 800万超の税率 | F8: 0.255 | H8: 400万以下の税率 | I8: 0.027 | K8: =H33 -> 地方法人特別税 | L8: =I33 -> 96500
E9: 800万までの税額 | F9: =ROUNDDOWN((F5*F7)/100,0)*100 -> 642100 | H9: 800万以下の税率 | I9: 0.04 | K9: =E28 -> 法人市民税 | L9: =F28 -> 128900
E10: 800万超の税額 | F10: =ROUNDDOWN((F6*F8)/100,0)*100 -> 0 | H10: 800万超の税率 | I10: 0.053 | K10: 納税額小計 | L10: =SUM(L4:L9) -> 1103000
E11: 法人税額 | F11: =SUM(F9:F10) -> 642100 | H11: 400万以下の税額 | I11: =ROUNDDOWN(I5*I8/100,0)*100 -> 108000 | K11: 予定納税額
E12: 法人税額特別控除額 | H12: 800万以下の税額 | I12: =ROUNDDOWN(I6*I9/100,0)*100 -> 11200 | K12: 合計納税額 | L12: =L10-L11 -> 1103000
E13: 差引法人税額 | F13: =ROUNDDOWN(SUM(F11-F12),-2) -> 642100 | H13: 800万超の税額 | I13: =ROUNDDOWN(I7*I10/100,0)*100 -> 0
H14: 法人事業税 | I14: =SUM(I11:I13) -> 119200
E15: ３、復興特別法人税の計算 | H15: 法人県民税
E16: 課税標準法人税額 | F16: =F13 -> 642100 | H16: 法人税額 | I16: =ROUNDDOWN(F13/1000,0)*1000 -> 642000
B17: ="加算小計" -> 加算小計 | C17: =SUM(C5:C16) -> 39784 | E17: 税率 | F17: 0.1 | H17: 法人税割税率 | I17: 0.05
A18: 減 算 | B18: 受取配当等の益金不算入額 | C18: 0 | E18: 復興特別法人税 | F18: =ROUNDDOWN(F16*F17,-2) -> 64200 | H18: 法人税割額 | I18: =ROUNDDOWN((I16*I17)/100,0)*100 -> 32100
B19: 納税充当金支出事業税等 | C19: 0 | H19: 法人均等割額 | I19: 20000
E20: ４、市民税の計算 | H20: 法人税均等割 | I20: =SUM(I19) -> 20000
E21: 法人税割 | H21: 法人県民税 | I21: =I18+I20 -> 52100
E22: =H16 -> 法人税額 | F22: =I16 -> 642000 | H22: 地方法人特別税（国税）
E23: 法人税割税率 | F23: 0.123 | H23: 400万以下の金額 | I23: =IF(F4<=0,0,IF($F$4<=4000000,ROUNDDOWN($F$4/1000,0)*1000,4000000)) -> 4000000
E24: 法人税割税額 | F24: =ROUNDDOWN(F22*F23/100,0)*100 -> 78900 | H24: 800万以下の金額 | I24: =IF($F$4<=4000000,0,IF($F$4<=8000000,ROUNDDOWN(($F$4-4000000)/1000,0)*1000,4000000)) -> 281000
E25: 法人税均等割 | H25: 800万超の金額 | I25: =IF(F4<=8000000,0,ROUNDDOWN((F4-8000000)/1000,0)*1000) -> 0
E26: 法人均等割額 | F26: 50000 | H26: 400万以下の税率 | I26: 0.027
E27: 法人税均等割 | F27: =SUM(F26) -> 50000 | H27: 800万以下の税率 | I27: 0.04
E28: 法人市民税 | F28: =F24+F27 -> 128900 | H28: 800万超の税率 | I28: 0.053
H29: 400万以下の税額 | I29: =ROUNDDOWN(I23*I26/100,0)*100 -> 108000
B30: 減算小計 | C30: =SUM(C18:C29) -> 0 | H30: 800万以下の税額 | I30: =ROUNDDOWN(I24*I27/100,0)*100 -> 11200
A31: 今期予測所得金額 | C31: =C4+C17-C30 -> 4281113 | H31: 800万超の税額 | I31: =ROUNDDOWN(I25*I28/100,0)*100 -> 0
A32: 繰越欠損金額 | H32: 基準法人所得割額 | I32: =SUM(I29:I31) -> 119200
A33: 所得金額再計 | C33: =IF(C31-C32<0,0,C31-C32) -> 4281113 | H33: 地方法人特別税 | I33: =ROUNDDOWN(I32*0.81,-2) -> 96500

Sheet 対策後の法人税等
A1: 対策後の法人税等の計算
A3: １、所得の計算（別表４） | E3: ２、 法人税の計算 | H3: ４、県民税の計算 | K3: ５、今期納税見込額
A4: ="税引前当期利益" -> 税引前当期利益 | C4: =対策後の決算書!H88 -> 1621329 | E4: 所得金額 | F4: =C33 -> 1661113 | H4: 法人事業税 | K4: =E11 -> 法人税額 | L4: =F13 -> 249100
A5: 加 算 | B5: 交際費損金不算入額 | C5: =IF(対策前の法人税等!C5="","",対策前の法人税等!C5) -> 39784 | E5: 800万以下の金額 | F5: =IF(F4<=0,0,IF($F$4<=8000000,ROUNDDOWN($F$4/1000,0)*1000,8000000)) -> 1661000 | H5: 400万以下の金額 | I5: =IF(F4<=0,0,IF($F$4<=4000000,ROUNDDOWN($F$4/1000,0)*1000,4000000)) -> 1661000 | K5: 復興特別法人税 | L5: =F18 -> 24900
B6: =IF(対策前の法人税等!B6="","",対策前の法人税等!B6) ->  | C6: =IF(対策前の法人税等!C6="","",対策前の法人税等!C6) ->  | E6: 800万超の金額 | F6: =IF($F$4>8000000,ROUNDDOWN(($F$4-8000000)/1000,0)*1000,0) -> 0 | H6: 800万以下の金額 | I6: =IF($F$4<=4000000,0,IF($F$4<=8000000,ROUNDDOWN(($F$4-4000000)/1000,0)*1000,4000000)) -> 0 | K6: =H14 -> 法人事業税 | L6: =I14 -> 44800
B7: =IF(対策前の法人税等!B7="","",対策前の法人税等!B7) ->  | C7: =IF(対策前の法人税等!C7="","",対策前の法人税等!C7) ->  | E7: 800万までの税率 | F7: =対策前の法人税等!F7 -> 0.15 | H7: 800万超の金額 | I7: =IF(F4<=8000000,0,ROUNDDOWN((F4-8000000)/1000,0)*1000) -> 0 | K7: =H21 -> 法人県民税 | L7: =I21 -> 32400
B8: =IF(対策前の法人税等!B8="","",対策前の法人税等!B8) ->  | C8: =IF(対策前の法人税等!C8="","",対策前の法人税等!C8) ->  | E8: 800万超の税率 | F8: =対策前の法人税等!F8 -> 0.255 | H8: 400万以下の税率 | I8: =対策前の法人税等!I8 -> 0.027 | K8: =H33 -> 地方法人特別税 | L8: =I33 -> 36200
B9: =IF(対策前の法人税等!B9="","",対策前の法人税等!B9) ->  | C9: =IF(対策前の法人税等!C9="","",対策前の法人税等!C9) ->  | E9: 800万までの税額 | F9: =ROUNDDOWN((F5*F7)/100,0)*100 -> 249100 | H9: 800万以下の税率 | I9: =対策前の法人税等!I9 -> 0.04 | K9: =E28 -> 法人市民税 | L9: =F28 -> 80600
B10: =IF(対策前の法人税等!B10="","",対策前の法人税等!B10) ->  | C10: =IF(対策前の法人税等!C10="","",対策前の法人税等!C10) ->  | E10: 800万超の税額 | F10: =ROUNDDOWN((F6*F8)/100,0)*100 -> 0 | H10: 800万超の税率 | I10: =対策前の法人税等!I10 -> 0.053 | K10: 納税額小計 | L10: =SUM(L4:L9) -> 468000
B11: =IF(対策前の法人税等!B11="","",対策前の法人税等!B11) ->  | C11: =IF(対策前の法人税等!C11="","",対策前の法人税等!C11) ->  | E11: 法人税額 | F11: =SUM(F9:F10) -> 249100 | H11: 400万以下の税額 | I11: =ROUNDDOWN(I5*I8/100,0)*100 -> 44800 | K11: 予定納税額 | L11: =対策前の法人税等!L11 -> 0
B12: =IF(対策前の法人税等!B12="","",対策前の法人税等!B12) ->  | C12: =IF(対策前の法人税等!C12="","",対策前の法人税等!C12) ->  | E12: 法人税額特別控除額 | H12: 800万以下の税額 | I12: =ROUNDDOWN(I6*I9/100,0)*100 -> 0 | K12: 合計納税額 | L12: =L10-L11 -> 468000
B13: =IF(対策前の法人税等!B13="","",対策前の法人税等!B13) ->  | C13: =IF(対策前の法人税等!C13="","",対策前の法人税等!C13) ->  | E13: 差引法人税額 | F13: =ROUNDDOWN(SUM(F11-F12),-2) -> 249100 | H13: 800万超の税額 | I13: =ROUNDDOWN(I7*I10/100,0)*100 -> 0
B14: =IF(対策前の法人税等!B14="","",対策前の法人税等!B14) ->  | C14: =IF(対策前の法人税等!C14="","",対策前の法人税等!C14) ->  | H14: 法人事業税 | I14: =SUM(I11:I13) -> 44800
B15: =IF(対策前の法人税等!B15="","",対策前の法人税等!B15) ->  | C15: =IF(対策前の法人税等!C15="","",対策前の法人税等!C15) ->  | E15: ３、復興特別法人税の計算 | H15: 法人県民税
B16: =IF(対策前の法人税等!B16="","",対策前の法人税等!B16) ->  | C16: =IF(対策前の法人税等!C16="","",対策前の法人税等!C16) ->  | E16: 課税標準法人税額 | F16: =F13 -> 249100 | H16: 法人税額 | I16: =ROUNDDOWN(F13/1000,0)*1000 -> 249000
B17: ="加算小計" -> 加算小計 | C17: =SUM(C5:C16) -> 39784 | E17: 税率 | F17: 0.1 | H17: 法人税割税率 | I17: =対策前の法人税等!I17 -> 0.05
A18: 減 算 | B18: =IF(対策前の法人税等!B18="","",対策前の法人税等!B18) -> 受取配当等の益金不算入額 | C18: =IF(対策前の法人税等!C18="","",対策前の法人税等!C18) -> 0 | E18: 復興特別法人税 | F18: =ROUNDDOWN(F16*F17,-2) -> 24900 | H18: 法人税割額 | I18: =ROUNDDOWN((I16*I17)/100,0)*100 -> 12400
B19: =IF(対策前の法人税等!B19="","",対策前の法人税等!B19) -> 納税充当金支出事業税等 | C19: =IF(対策前の法人税等!C19="","",対策前の法人税等!C19) -> 0 | H19: 法人均等割額 | I19: =対策前の法人税等!I19 -> 20000
B20: =IF(対策前の法人税等!B20="","",対策前の法人税等!B20) ->  | C20: =IF(対策前の法人税等!C20="","",対策前の法人税等!C20) ->  | E20: ４、市民税の計算 | H20: 法人税均等割 | I20: =SUM(I19) -> 20000
B21: =IF(対策前の法人税等!B21="","",対策前の法人税等!B21) ->  | C21: =IF(対策前の法人税等!C21="","",対策前の法人税等!C21) ->  | E21: 法人税割 | H21: 法人県民税 | I21: =I18+I20 -> 32400
B22: =IF(対策前の法人税等!B22="","",対策前の法人税等!B22) ->  | C22: =IF(対策前の法人税等!C22="","",対策前の法人税等!C22) ->  | E22: =H16 -> 法人税額 | F22: =I16 -> 249000 | H22: 地方法人特別税（国税）
B23: =IF(対策前の法人税等!B23="","",対策前の法人税等!B23) ->  | C23: =IF(対策前の法人税等!C23="","",対策前の法人税等!C23) ->  | E23: 法人税割税率 | F23: 0.123 | H23: 400万以下の金額 | I23: =IF(F4<=0,0,IF($F$4<=4000000,ROUNDDOWN($F$4/1000,0)*1000,4000000)) -> 1661000
B24: =IF(対策前の法人税等!B24="","",対策前の法人税等!B24) ->  | C24: =IF(対策前の法人税等!C24="","",対策前の法人税等!C24) ->  | E24: 法人税割税額 | F24: =ROUNDDOWN(F22*F23/100,0)*100 -> 30600 | H24: 800万以下の金額 | I24: =IF($F$4<=4000000,0,IF($F$4<=8000000,ROUNDDOWN(($F$4-4000000)/1000,0)*1000,4000000)) -> 0
B25: =IF(対策前の法人税等!B25="","",対策前の法人税等!B25) ->  | C25: =IF(対策前の法人税等!C25="","",対策前の法人税等!C25) ->  | E25: 法人税均等割 | H25: 800万超の金額 | I25: =IF(F4<=8000000,0,ROUNDDOWN((F4-8000000)/1000,0)*1000) -> 0
B26: =IF(対策前の法人税等!B26="","",対策前の法人税等!B26) ->  | C26: =IF(対策前の法人税等!C26="","",対策前の法人税等!C26) ->  | E26: 法人均等割額 | F26: 50000 | H26: 400万以下の税率 | I26: =対策前の法人税等!I26 -> 0.027
B27: =IF(対策前の法人税等!B27="","",対策前の法人税等!B27) ->  | C27: =IF(対策前の法人税等!C27="","",対策前の法人税等!C27) ->  | E27: 法人税均等割 | F27: =SUM(F26) -> 50000 | H27: 800万以下の税率 | I27: =対策前の法人税等!I27 -> 0.04
B28: =IF(対策前の法人税等!B28="","",対策前の法人税等!B28) ->  | C28: =IF(対策前の法人税等!C28="","",対策前の法人税等!C28) ->  | E28: 法人市民税 | F28: =F24+F27 -> 80600 | H28: 800万超の税率 | I28: =対策前の法人税等!I28 -> 0.053
B29: =IF(対策前の法人税等!B29="","",対策前の法人税等!B29) ->  | C29: =IF(対策前の法人税等!C29="","",対策前の法人税等!C29) ->  | H29: 400万以下の税額 | I29: =ROUNDDOWN(I23*I26/100,0)*100 -> 44800
B30: 減算小計 | C30: =SUM(C18:C29) -> 0 | H30: 800万以下の税額 | I30: =ROUNDDOWN(I24*I27/100,0)*100 -> 0
A31: 今期予測所得金額 | C31: =C4+C17-C30 -> 1661113 | H31: 800万超の税額 | I31: =ROUNDDOWN(I25*I28/100,0)*100 -> 0
A32: 繰越欠損金額 | C32: =対策前の法人税等!C32 -> 0 | H32: 基準法人所得割額 | I32: =SUM(I29:I31) -> 44800
A33: 所得金額再計 | C33: =IF(C31-C32<0,0,C31-C32) -> 1661113 | H33: 地方法人特別税 | I33: =ROUNDDOWN(I32*0.81,-2) -> 36200

Sheet まとめ
A4: =基本情報!C8&"様" -> 株式会社今野デザイン様 | S4: 小林敬幸税理士事務所
A5: =基本情報!C10 -> 2013-09-30
A6: 決算対策を行った場合の納税額の変化
A8: １．損益計算書の比較 | K8: ２．税額の比較
K9: 対策前 | P9: 対策後
A10: 勘 定 科 目 | F10: 対策前の金額 | G10: 対策後の金額 | H10: 差額 | I10: 決算対策の内容 | K10: 法人の税金 | P10: 法人の税金
L11: 法人税 | N11: =対策前の法人税等!L4 -> 642100 | Q11: 法人税 | S11: =対策後の法人税等!L4 -> 249100
A12: 経常損益 | B12: 営業損益 | C12: 売上高 | D12: =IF(対策後の決算書!D6="","",対策後の決算書!D6) -> 売上高 | F12: =対策後の決算書!F6 -> 29235176 | G12: =対策後の決算書!H6 -> 29235176 | H12: =IF(ISERR(G12-F12),0,G12-F12) -> 0 | I12: =IF(対策後の決算書!I6="","",対策後の決算書!I6) ->  | L12: 復興特別法人税 | N12: =対策前の法人税等!L5 -> 64200 | Q12: 復興特別法人税 | S12: =対策後の法人税等!L5 -> 24900
D13: =IF(対策後の決算書!D7="","",対策後の決算書!D7) ->  | F13: =対策後の決算書!F7 -> 0 | G13: =対策後の決算書!H7 -> 0 | H13: =G13-F13 -> 0 | I13: =IF(対策後の決算書!I7="","",対策後の決算書!I7) ->  | L13: 法人事業税 | N13: =対策前の法人税等!L6 -> 119200 | Q13: 法人事業税 | S13: =対策後の法人税等!L6 -> 44800
D14: =IF(対策後の決算書!D8="","",対策後の決算書!D8) ->  | F14: =対策後の決算書!F8 -> 0 | G14: =対策後の決算書!H8 -> 0 | H14: =IF(ISERR(G14-F14),0,G14-F14) -> 0 | I14: =IF(対策後の決算書!I8="","",対策後の決算書!I8) ->  | L14: 法人県民税 | N14: =対策前の法人税等!L7 -> 52100 | Q14: 法人県民税 | S14: =対策後の法人税等!L7 -> 32400
D15: =IF(対策後の決算書!D9="","",対策後の決算書!D9) ->  | F15: =対策後の決算書!F9 -> 0 | G15: =対策後の決算書!H9 -> 0 | H15: 0 | I15: =IF(対策後の決算書!I9="","",対策後の決算書!I9) ->  | L15: 地方法人特別税 | N15: =対策前の法人税等!L8 -> 96500 | Q15: 地方法人特別税 | S15: =対策後の法人税等!L8 -> 36200
D16: =IF(対策後の決算書!D10="","",対策後の決算書!D10) ->  | F16: =対策後の決算書!F10 -> 0 | G16: =対策後の決算書!H10 -> 0 | H16: 0 | I16: =IF(対策後の決算書!I10="","",対策後の決算書!I10) ->  | L16: 法人市民税 | N16: =対策前の法人税等!L9 -> 128900 | Q16: 法人市民税 | S16: =対策後の法人税等!L9 -> 80600
D17: 売上高合計 | F17: =対策後の決算書!F11 -> 29235176 | G17: =対策後の決算書!H11 -> 29235176 | H17: 0 | I17: =IF(対策後の決算書!I11="","",対策後の決算書!I11) ->  | L17: 合計 | N17: =SUM(N11:N16) -> 1103000 | Q17: 合計 | S17: =SUM(S11:S16) -> 468000
C18: 売上原価 | D18: =IF(対策後の決算書!D12="","",対策後の決算書!D12) -> 期首棚卸高 | F18: =対策後の決算書!F12 -> 0 | G18: =対策後の決算書!H12 -> 0 | H18: 0 | I18: =IF(対策後の決算書!I12="","",対策後の決算書!I12) ->  | L18: 予定納税額 | N18: =対策前の法人税等!L11 -> 0 | Q18: 予定納税額 | S18: =対策後の法人税等!L11 -> 0
D19: =IF(対策後の決算書!D13="","",対策後の決算書!D13) -> 仕入高 | F19: =対策後の決算書!F13 -> 0 | G19: =対策後の決算書!H13 -> 0 | H19: 0 | I19: =IF(対策後の決算書!I13="","",対策後の決算書!I13) ->  | L19: 期末納税見込額 | N19: =N17-N18 -> 1103000 | Q19: 期末納税見込額 | S19: =S17-S18 -> 468000
D20: =IF(対策後の決算書!D14="","",対策後の決算書!D14) ->  | F20: =対策後の決算書!F14 -> 0 | G20: =対策後の決算書!H14 -> 0 | H20: 0 | I20: =IF(対策後の決算書!I14="","",対策後の決算書!I14) -> 
D21: =IF(対策後の決算書!D15="","",対策後の決算書!D15) ->  | F21: =対策後の決算書!F15 -> 0 | G21: =対策後の決算書!H15 -> 0 | H21: 0 | I21: =IF(対策後の決算書!I15="","",対策後の決算書!I15) -> 
D22: =IF(対策後の決算書!D16="","",対策後の決算書!D16) ->  | F22: =対策後の決算書!F16 -> 0 | G22: =対策後の決算書!H16 -> 0 | H22: 0 | I22: =IF(対策後の決算書!I16="","",対策後の決算書!I16) -> 
D23: =IF(対策後の決算書!D17="","",対策後の決算書!D17) ->  | F23: =対策後の決算書!F17 -> 0 | G23: =対策後の決算書!H17 -> 0 | H23: 0 | I23: =IF(対策後の決算書!I17="","",対策後の決算書!I17) -> 
D24: =IF(対策後の決算書!D18="","",対策後の決算書!D18) ->  | F24: =対策後の決算書!F18 -> 0 | G24: =対策後の決算書!H18 -> 0 | H24: 0 | I24: =IF(対策後の決算書!I18="","",対策後の決算書!I18) -> 
D25: =IF(対策後の決算書!D19="","",対策後の決算書!D19) -> 期末棚卸高 | F25: =対策後の決算書!F19 -> 0 | G25: =対策後の決算書!H19 -> 0 | H25: 0 | I25: =IF(対策後の決算書!I19="","",対策後の決算書!I19) -> 
D26: 売上原価 | F26: =対策後の決算書!F20 -> 0 | G26: =対策後の決算書!H20 -> 0 | H26: 0 | I26: =IF(対策後の決算書!I20="","",対策後の決算書!I20) -> 
C27: 売上総損益金額 | F27: =対策後の決算書!F21 -> 29235176 | G27: =対策後の決算書!H21 -> 29235176 | H27: 0 | I27: =IF(対策後の決算書!I21="","",対策後の決算書!I21) -> 
C28: (売上総利益率） | F28: =対策後の決算書!F22 -> 1 | G28: =対策後の決算書!H22 -> 1 | I28: =IF(対策後の決算書!I22="","",対策後の決算書!I22) -> 
C29: 販売費及び一般管理費 | D29: 人件費 | E29: =IF(対策後の決算書!E23="","",対策後の決算書!E23) -> 役員報酬 | F29: =対策後の決算書!F23 -> 13200000 | G29: =対策後の決算書!H23 -> 13200000 | H29: 0 | I29: =IF(対策後の決算書!I23="","",対策後の決算書!I23) -> 
E30: =IF(対策後の決算書!E24="","",対策後の決算書!E24) -> 給料手当 | F30: =対策後の決算書!F24 -> 0 | G30: =対策後の決算書!H24 -> 0 | H30: 0 | I30: =IF(対策後の決算書!I24="","",対策後の決算書!I24) -> 
E31: =IF(対策後の決算書!E25="","",対策後の決算書!E25) -> 賞与 | F31: =対策後の決算書!F25 -> 0 | G31: =対策後の決算書!H25 -> 0 | H31: 0 | I31: =IF(対策後の決算書!I25="","",対策後の決算書!I25) -> 
E32: =IF(対策後の決算書!E26="","",対策後の決算書!E26) -> 退職金 | F32: =対策後の決算書!F26 -> 0 | G32: =対策後の決算書!H26 -> 0 | H32: 0 | I32: =IF(対策後の決算書!I26="","",対策後の決算書!I26) -> 
E33: =IF(対策後の決算書!E27="","",対策後の決算書!E27) -> 法定福利費 | F33: =対策後の決算書!F27 -> 1802067 | G33: =対策後の決算書!H27 -> 1802067 | H33: 0 | I33: =IF(対策後の決算書!I27="","",対策後の決算書!I27) -> 
E34: =IF(対策後の決算書!E28="","",対策後の決算書!E28) ->  | F34: =対策後の決算書!F28 -> 0 | G34: =対策後の決算書!H28 -> 0 | H34: 0 | I34: =IF(対策後の決算書!I28="","",対策後の決算書!I28) -> 
E35: =IF(対策後の決算書!E29="","",対策後の決算書!E29) ->  | F35: =対策後の決算書!F29 -> 0 | G35: =対策後の決算書!H29 -> 0 | H35: 0 | I35: =IF(対策後の決算書!I29="","",対策後の決算書!I29) -> 
E36: =IF(対策後の決算書!E30="","",対策後の決算書!E30) ->  | F36: =対策後の決算書!F30 -> 0 | G36: =対策後の決算書!H30 -> 0 | H36: 0 | I36: =IF(対策後の決算書!I30="","",対策後の決算書!I30) -> 
E37: 人件費小計 | F37: =対策後の決算書!F31 -> 15002067 | G37: =対策後の決算書!H31 -> 15002067 | H37: 0 | I37: =IF(対策後の決算書!I31="","",対策後の決算書!I31) -> 
D38: その他の経費 | E38: =IF(対策後の決算書!E32="","",対策後の決算書!E32) -> 外注費 | F38: =対策後の決算書!F32 -> 2873224 | G38: =対策後の決算書!H32 -> 2873224 | H38: 0 | I38: =IF(対策後の決算書!I32="","",対策後の決算書!I32) -> 
E39: =IF(対策後の決算書!E33="","",対策後の決算書!E33) -> 広告宣伝費 | F39: =対策後の決算書!F33 -> 600000 | G39: =対策後の決算書!H33 -> 600000 | H39: 0 | I39: =IF(対策後の決算書!I33="","",対策後の決算書!I33) -> 
E40: =IF(対策後の決算書!E34="","",対策後の決算書!E34) -> 交際費 | F40: =対策後の決算書!F34 -> 397840 | G40: =対策後の決算書!H34 -> 397840 | H40: 0 | I40: =IF(対策後の決算書!I34="","",対策後の決算書!I34) -> 
E41: =IF(対策後の決算書!E35="","",対策後の決算書!E35) -> 会議費 | F41: =対策後の決算書!F35 -> 56948 | G41: =対策後の決算書!H35 -> 56948 | H41: 0 | I41: =IF(対策後の決算書!I35="","",対策後の決算書!I35) -> 
E42: =IF(対策後の決算書!E36="","",対策後の決算書!E36) -> 旅費交通費 | F42: =対策後の決算書!F36 -> 755580 | G42: =対策後の決算書!H36 -> 755580 | H42: 0 | I42: =IF(対策後の決算書!I36="","",対策後の決算書!I36) -> 
E43: =IF(対策後の決算書!E37="","",対策後の決算書!E37) -> 通信費 | F43: =対策後の決算書!F37 -> 467878 | G43: =対策後の決算書!H37 -> 467878 | H43: 0 | I43: =IF(対策後の決算書!I37="","",対策後の決算書!I37) -> 
E44: =IF(対策後の決算書!E38="","",対策後の決算書!E38) -> 消耗品費 | F44: =対策後の決算書!F38 -> 553031 | G44: =対策後の決算書!H38 -> 773031 | H44: 220000 | I44: =IF(対策後の決算書!I38="","",対策後の決算書!I38) -> パソコン１台購入
E45: =IF(対策後の決算書!E39="","",対策後の決算書!E39) -> 事務用品費 | F45: =対策後の決算書!F39 -> 0 | G45: =対策後の決算書!H39 -> 0 | H45: 0 | I45: =IF(対策後の決算書!I39="","",対策後の決算書!I39) -> 
E46: =IF(対策後の決算書!E40="","",対策後の決算書!E40) -> 水道光熱費 | F46: =対策後の決算書!F40 -> 195811 | G46: =対策後の決算書!H40 -> 195811 | H46: 0 | I46: =IF(対策後の決算書!I40="","",対策後の決算書!I40) -> 
E47: =IF(対策後の決算書!E41="","",対策後の決算書!E41) -> 新聞図書費 | F47: =対策後の決算書!F41 -> 230199 | G47: =対策後の決算書!H41 -> 230199 | H47: 0 | I47: =IF(対策後の決算書!I41="","",対策後の決算書!I41) -> 
E48: =IF(対策後の決算書!E42="","",対策後の決算書!E42) -> 諸会費 | F48: =対策後の決算書!F42 -> 30000 | G48: =対策後の決算書!H42 -> 30000 | H48: 0 | I48: =IF(対策後の決算書!I42="","",対策後の決算書!I42) -> 
E49: =IF(対策後の決算書!E43="","",対策後の決算書!E43) -> 支払手数料 | F49: =対策後の決算書!F43 -> 106900 | G49: =対策後の決算書!H43 -> 106900 | H49: 0 | I49: =IF(対策後の決算書!I43="","",対策後の決算書!I43) -> 
E50: =IF(対策後の決算書!E44="","",対策後の決算書!E44) -> 車両費 | F50: =対策後の決算書!F44 -> 291432 | G50: =対策後の決算書!H44 -> 291432 | H50: 0 | I50: =IF(対策後の決算書!I44="","",対策後の決算書!I44) -> 
E51: =IF(対策後の決算書!E45="","",対策後の決算書!E45) -> 地代家賃 | F51: =対策後の決算書!F45 -> 1440000 | G51: =対策後の決算書!H45 -> 2880000 | H51: 1440000 | I51: =IF(対策後の決算書!I45="","",対策後の決算書!I45) -> 事務所家賃１年分前払い
E52: =IF(対策後の決算書!E46="","",対策後の決算書!E46) -> 賃借料 | F52: =対策後の決算書!F46 -> 240000 | G52: =対策後の決算書!H46 -> 240000 | H52: 0 | I52: =IF(対策後の決算書!I46="","",対策後の決算書!I46) -> 
E53: =IF(対策後の決算書!E47="","",対策後の決算書!E47) -> リース料 | F53: =対策後の決算書!F47 -> 0 | G53: =対策後の決算書!H47 -> 0 | H53: 0 | I53: =IF(対策後の決算書!I47="","",対策後の決算書!I47) -> 
E54: =IF(対策後の決算書!E48="","",対策後の決算書!E48) -> 保険料 | F54: =対策後の決算書!F48 -> 45000 | G54: =対策後の決算書!H48 -> 1005000 | H54: 960000 | I54: =IF(対策後の決算書!I48="","",対策後の決算書!I48) -> 倒産防止共済加入
E55: =IF(対策後の決算書!E49="","",対策後の決算書!E49) -> 租税公課 | F55: =対策後の決算書!F49 -> 700000 | G55: =対策後の決算書!H49 -> 700000 | H55: 0 | I55: =IF(対策後の決算書!I49="","",対策後の決算書!I49) -> 
E56: =IF(対策後の決算書!E50="","",対策後の決算書!E50) -> 研究開発費 | F56: =対策後の決算書!F50 -> 0 | G56: =対策後の決算書!H50 -> 0 | H56: 0 | I56: =IF(対策後の決算書!I50="","",対策後の決算書!I50) -> 
E57: =IF(対策後の決算書!E51="","",対策後の決算書!E51) -> 減価償却費 | F57: =対策後の決算書!F51 -> 399996 | G57: =対策後の決算書!H51 -> 399996 | H57: 0 | I57: =IF(対策後の決算書!I51="","",対策後の決算書!I51) -> 
E58: =IF(対策後の決算書!E52="","",対策後の決算書!E52) -> 長期前払費用償却 | F58: =対策後の決算書!F52 -> 0 | G58: =対策後の決算書!H52 -> 0 | H58: 0 | I58: =IF(対策後の決算書!I52="","",対策後の決算書!I52) -> 
E59: =IF(対策後の決算書!E53="","",対策後の決算書!E53) -> 雑費 | F59: =対策後の決算書!F53 -> 191181 | G59: =対策後の決算書!H53 -> 191181 | H59: 0 | I59: =IF(対策後の決算書!I53="","",対策後の決算書!I53) -> 
E60: =IF(対策後の決算書!E54="","",対策後の決算書!E54) -> 顧問料 | F60: =対策後の決算書!F54 -> 420000 | G60: =対策後の決算書!H54 -> 420000 | H60: 0 | I60: =IF(対策後の決算書!I54="","",対策後の決算書!I54) -> 
E61: =IF(対策後の決算書!E55="","",対策後の決算書!E55) ->  | F61: =対策後の決算書!F55 -> 0 | G61: =対策後の決算書!H55 -> 0 | H61: 0 | I61: =IF(対策後の決算書!I55="","",対策後の決算書!I55) -> 
E62: =IF(対策後の決算書!E56="","",対策後の決算書!E56) ->  | F62: =対策後の決算書!F56 -> 0 | G62: =対策後の決算書!H56 -> 0 | H62: 0 | I62: =IF(対策後の決算書!I56="","",対策後の決算書!I56) -> 
E63: =IF(対策後の決算書!E57="","",対策後の決算書!E57) ->  | F63: =対策後の決算書!F57 -> 0 | G63: =対策後の決算書!H57 -> 0 | H63: 0 | I63: =IF(対策後の決算書!I57="","",対策後の決算書!I57) -> 
E64: =IF(対策後の決算書!E58="","",対策後の決算書!E58) ->  | F64: =対策後の決算書!F58 -> 0 | G64: =対策後の決算書!H58 -> 0 | H64: 0 | I64: =IF(対策後の決算書!I58="","",対策後の決算書!I58) -> 
E65: =IF(対策後の決算書!E59="","",対策後の決算書!E59) ->  | F65: =対策後の決算書!F59 -> 0 | G65: =対策後の決算書!H59 -> 0 | H65: 0 | I65: =IF(対策後の決算書!I59="","",対策後の決算書!I59) -> 
E66: =IF(対策後の決算書!E60="","",対策後の決算書!E60) ->  | F66: =対策後の決算書!F60 -> 0 | G66: =対策後の決算書!H60 -> 0 | H66: 0 | I66: =IF(対策後の決算書!I60="","",対策後の決算書!I60) -> 
D67: 販売管理費計 | F67: =対策後の決算書!F61 -> 24997087 | G67: =対策後の決算書!H61 -> 27617087 | H67: 2620000 | I67: =IF(対策後の決算書!I61="","",対策後の決算書!I61) -> 
C68: 営業損益金額 | F68: =対策後の決算書!F62 -> 4238089 | G68: =対策後の決算書!H62 -> 1618089 | H68: -2620000 | I68: =IF(対策後の決算書!I62="","",対策後の決算書!I62) -> 
B69: 営業外損益 | C69: 営業外収益 | D69: =IF(対策後の決算書!D63="","",対策後の決算書!D63) -> 受取利息 | F69: =対策後の決算書!F63 -> 3240 | G69: =対策後の決算書!H63 -> 3240 | H69: 0 | I69: =IF(対策後の決算書!I63="","",対策後の決算書!I63) -> 
D70: =IF(対策後の決算書!D64="","",対策後の決算書!D64) -> 受取配当金 | F70: =対策後の決算書!F64 -> 0 | G70: =対策後の決算書!H64 -> 0 | H70: 0 | I70: =IF(対策後の決算書!I64="","",対策後の決算書!I64) -> 
D71: =IF(対策後の決算書!D65="","",対策後の決算書!D65) ->  | F71: =対策後の決算書!F65 -> 0 | G71: =対策後の決算書!H65 -> 0 | H71: 0 | I71: =IF(対策後の決算書!I65="","",対策後の決算書!I65) -> 
D72: =IF(対策後の決算書!D66="","",対策後の決算書!D66) ->  | F72: =対策後の決算書!F66 -> 0 | G72: =対策後の決算書!H66 -> 0 | H72: 0 | I72: =IF(対策後の決算書!I66="","",対策後の決算書!I66) -> 
D73: =IF(対策後の決算書!D67="","",対策後の決算書!D67) -> 雑収入 | F73: =対策後の決算書!F67 -> 0 | G73: =対策後の決算書!H67 -> 0 | H73: 0 | I73: =IF(対策後の決算書!I67="","",対策後の決算書!I67) -> 
D74: 営業外収益合計 | F74: =対策後の決算書!F68 -> 3240 | G74: =対策後の決算書!H68 -> 3240 | H74: 0 | I74: =IF(対策後の決算書!I68="","",対策後の決算書!I68) -> 
C75: 営業外費用 | D75: =IF(対策後の決算書!D69="","",対策後の決算書!D69) -> 支払利息 | F75: =対策後の決算書!F69 -> 0 | G75: =対策後の決算書!H69 -> 0 | H75: 0 | I75: =IF(対策後の決算書!I69="","",対策後の決算書!I69) -> 
D76: =IF(対策後の決算書!D70="","",対策後の決算書!D70) -> 貸倒損失 | F76: =対策後の決算書!F70 -> 0 | G76: =対策後の決算書!H70 -> 0 | H76: 0 | I76: =IF(対策後の決算書!I70="","",対策後の決算書!I70) -> 
D77: =IF(対策後の決算書!D71="","",対策後の決算書!D71) ->  | F77: =対策後の決算書!F71 -> 0 | G77: =対策後の決算書!H71 -> 0 | H77: 0 | I77: =IF(対策後の決算書!I71="","",対策後の決算書!I71) -> 
D78: =IF(対策後の決算書!D72="","",対策後の決算書!D72) ->  | F78: =対策後の決算書!F72 -> 0 | G78: =対策後の決算書!H72 -> 0 | H78: =IF(ISERR(G78-F78),0,G78-F78) -> 0 | I78: =IF(対策後の決算書!I72="","",対策後の決算書!I72) -> 
D79: =IF(対策後の決算書!D73="","",対策後の決算書!D73) -> 雑損失 | F79: =対策後の決算書!F73 -> 0 | G79: =対策後の決算書!H73 -> 0 | H79: 0 | I79: =IF(対策後の決算書!I73="","",対策後の決算書!I73) -> 
D80: 営業外費用合計 | F80: =対策後の決算書!F74 -> 0 | G80: =対策後の決算書!H74 -> 0 | H80: 0 | I80: =IF(対策後の決算書!I74="","",対策後の決算書!I74) -> 
C81: 経常損益金額 | F81: =対策後の決算書!F75 -> 4241329 | G81: =対策後の決算書!H75 -> 1621329 | H81: -2620000 | I81: =IF(対策後の決算書!I75="","",対策後の決算書!I75) -> 
A82: 特別損益 | C82: 特別利益 | D82: =IF(対策後の決算書!D76="","",対策後の決算書!D76) ->  | F82: =対策後の決算書!F76 -> 0 | G82: =対策後の決算書!H76 -> 0 | H82: 0 | I82: =IF(対策後の決算書!I76="","",対策後の決算書!I76) -> 
D83: =IF(対策後の決算書!D77="","",対策後の決算書!D77) ->  | F83: =対策後の決算書!F77 -> 0 | G83: =対策後の決算書!H77 -> 0 | H83: 0 | I83: =IF(対策後の決算書!I77="","",対策後の決算書!I77) -> 
D84: =IF(対策後の決算書!D78="","",対策後の決算書!D78) ->  | F84: =対策後の決算書!F78 -> 0 | G84: =対策後の決算書!H78 -> 0 | H84: 0 | I84: =IF(対策後の決算書!I78="","",対策後の決算書!I78) -> 
D85: =IF(対策後の決算書!D79="","",対策後の決算書!D79) ->  | F85: =対策後の決算書!F79 -> 0 | G85: =対策後の決算書!H79 -> 0 | H85: 0 | I85: =IF(対策後の決算書!I79="","",対策後の決算書!I79) -> 
D86: =IF(対策後の決算書!D80="","",対策後の決算書!D80) ->  | F86: =対策後の決算書!F80 -> 0 | G86: =対策後の決算書!H80 -> 0 | H86: 0 | I86: =IF(対策後の決算書!I80="","",対策後の決算書!I80) -> 
D87: 特別利益合計 | F87: =対策後の決算書!F81 -> 0 | G87: =対策後の決算書!H81 -> 0 | H87: 0 | I87: =IF(対策後の決算書!I81="","",対策後の決算書!I81) -> 
C88: 特別損失 | D88: =IF(対策後の決算書!D82="","",対策後の決算書!D82) ->  | F88: =対策後の決算書!F82 -> 0 | G88: =対策後の決算書!H82 -> 0 | H88: 0 | I88: =IF(対策後の決算書!I82="","",対策後の決算書!I82) -> 
D89: =IF(対策後の決算書!D83="","",対策後の決算書!D83) ->  | F89: =対策後の決算書!F83 -> 0 | G89: =対策後の決算書!H83 -> 0 | H89: 0 | I89: =IF(対策後の決算書!I83="","",対策後の決算書!I83) -> 
D90: =IF(対策後の決算書!D84="","",対策後の決算書!D84) ->  | F90: =対策後の決算書!F84 -> 0 | G90: =対策後の決算書!H84 -> 0 | H90: 0 | I90: =IF(対策後の決算書!I84="","",対策後の決算書!I84) -> 
D91: =IF(対策後の決算書!D85="","",対策後の決算書!D85) ->  | F91: =対策後の決算書!F85 -> 0 | G91: =対策後の決算書!H85 -> 0 | H91: 0 | I91: =IF(対策後の決算書!I85="","",対策後の決算書!I85) -> 
D92: =IF(対策後の決算書!D86="","",対策後の決算書!D86) ->  | F92: =対策後の決算書!F86 -> 0 | G92: =対策後の決算書!H86 -> 0 | H92: 0 | I92: =IF(対策後の決算書!I86="","",対策後の決算書!I86) -> 
D93: 特別損失合計 | F93: =対策後の決算書!F87 -> 0 | G93: =対策後の決算書!H87 -> 0 | H93: =IF(ISERR(G93-F93),0,G93-F93) -> 0 | I93: =IF(対策後の決算書!I87="","",対策後の決算書!I87) -> 
C94: 税引前当期利益金額 | F94: =対策後の決算書!F88 -> 4241329 | G94: =対策後の決算書!H88 -> 1621329 | H94: =IF(ISERR(G94-F94),0,G94-F94) -> -2620000 | I94: =IF(対策後の決算書!I88="","",対策後の決算書!I88) -> 
